[Event "December 5 Early 2023"]
[Site "https://www.chess.com"]
[Date "2023.12.05"]
[Round "5"]
[White "Shubenkova, Veronika"]
[Black "Hoffmann, Asa"]
[Result "0-1"]
[Board "120"]
[TimeControl "180+1"]
[WhiteFideId "44124040"]
[BlackFideId "2001470"]
[WhiteElo "2591"]
[BlackElo "2396"]
[WhiteTeam "RUS"]
[BlackTeam "USA"]
[WhiteClock "0:00:13"]
[BlackClock "0:00:30"]

1. g4 {[%clk 0:03:00]}  d6 {[%clk 0:02:54]} 2. h3 {[%clk 0:03:00]}  g6 {[%clk 0:02:52]} 3. Bg2 {[%clk 0:03:00]}  c6 {[%clk 0:02:52]} 4. e3 {[%clk 0:03:01]}  Bg7 {[%clk 0:02:52]} 5. Ne2 {[%clk 0:03:01]}  e5 {[%clk 0:02:52]} 6. d4 {[%clk 0:03:00]}  Qc7 {[%clk 0:02:50]} 7. c4 {[%clk 0:02:59]}  Ne7 {[%clk 0:02:50]} 8. Nbc3 {[%clk 0:02:59]}  Nd7 {[%clk 0:02:48]} 9. Bd2 {[%clk 0:02:59]}  a6 {[%clk 0:02:47]} 10. Qc2 {[%clk 0:02:58]}  f5 {[%clk 0:02:44]} 11. g5 {[%clk 0:02:56]}  Rb8 {[%clk 0:02:32]} 12. d5 {[%clk 0:02:54]}  c5 {[%clk 0:02:29]} 13. e4 {[%clk 0:02:54]}  b5 {[%clk 0:02:28]} 14. exf5 {[%clk 0:02:54]}  Nxf5 {[%clk 0:02:27]} 15. cxb5 {[%clk 0:02:52]}  axb5 {[%clk 0:02:27]} 16. Ne4 {[%clk 0:02:52]}  Bb7 {[%clk 0:02:22]} 17. N4g3 {[%clk 0:02:44]}  Nd4 {[%clk 0:02:10]} 18. Nxd4 {[%clk 0:02:44]}  exd4 {[%clk 0:02:10]} 19. O-O {[%clk 0:02:44]}  O-O {[%clk 0:02:10]} 20. h4 {[%clk 0:02:38]}  Ne5 {[%clk 0:02:08]} 21. Qe4 {[%clk 0:02:35]}  Qf7 {[%clk 0:02:04]} 22. f4 {[%clk 0:02:32]}  Nc4 {[%clk 0:02:01]} 23. Bc1 {[%clk 0:02:25]}  Rbe8 {[%clk 0:01:59]} 24. Qf3 {[%clk 0:02:24]}  Ne3 {[%clk 0:01:52]} 25. Bxe3 {[%clk 0:02:23]}  Rxe3 {[%clk 0:01:52]} 26. Qg4 {[%clk 0:02:21]}  Bxd5 {[%clk 0:01:50]} 27. f5 {[%clk 0:02:20]}  Bxg2 {[%clk 0:01:45]} 28. Kxg2 {[%clk 0:02:19]}  Be5 {[%clk 0:01:44]} 29. Rf3 {[%clk 0:01:17]}  gxf5 {[%clk 0:01:33]} 30. Nxf5 {[%clk 0:01:16]}  Rxf3 {[%clk 0:01:01]} 31. Nh6+ {[%clk 0:01:16]}  Kg7 {[%clk 0:01:00]} 32. Nxf7 {[%clk 0:01:16]}  Rg3+ {[%clk 0:00:54]} 33. Qxg3 {[%clk 0:01:08]}  Bxg3 {[%clk 0:00:54]} 34. Kxg3 {[%clk 0:01:08]}  Rxf7 {[%clk 0:00:54]} 35. Re1 {[%clk 0:01:09]}  d3 {[%clk 0:00:51]} 36. Re6 {[%clk 0:00:57]}  d5 {[%clk 0:00:49]} 37. Re3 {[%clk 0:00:42]}  c4 {[%clk 0:00:49]} 38. Re5 {[%clk 0:00:42]}  Rd7 {[%clk 0:00:47]} 39. Kf3 {[%clk 0:00:40]}  d4 {[%clk 0:00:40]} 40. Rc5 {[%clk 0:00:36]}  c3 {[%clk 0:00:35]} 41. Kf2 {[%clk 0:00:28]}  b4 {[%clk 0:00:31]} 42. b3 {[%clk 0:00:17]}  Re7 {[%clk 0:00:31]} 43. Rd5 {[%clk 0:00:13]}  c2 {[%clk 0:00:30]} 0-1

[Event "December 5 Early 2023"]
[Site "https://www.chess.com"]
[Date "2023.12.05"]
[Round "5"]
[White "Truskavetsky, Alexandr"]
[Black "Tymrakiewicz, Rafal"]
[Result "1/2-1/2"]
[Board "121"]
[TimeControl "180+1"]
[WhiteFideId "14108577"]
[BlackFideId "1108832"]
[WhiteElo "2590"]
[BlackElo "2391"]
[WhiteTeam "RUS"]
[BlackTeam "POL"]
[WhiteClock "0:00:35"]
[BlackClock "0:00:09"]

1. d3 {[%clk 0:03:00]}  Nf6 {[%clk 0:02:42]} 2. e4 {[%clk 0:02:59]}  e5 {[%clk 0:02:42]} 3. Nc3 {[%clk 0:02:59]}  Bb4 {[%clk 0:02:41]} 4. a3 {[%clk 0:02:58]}  Ba5 {[%clk 0:02:40]} 5. Nf3 {[%clk 0:02:54]}  O-O {[%clk 0:02:38]} 6. Nxe5 {[%clk 0:02:52]}  Re8 {[%clk 0:02:38]} 7. Nf3 {[%clk 0:02:51]}  d5 {[%clk 0:02:37]} 8. b4 {[%clk 0:02:46]}  dxe4 {[%clk 0:02:33]} 9. dxe4 {[%clk 0:02:46]}  Bb6 {[%clk 0:02:27]} 10. Qxd8 {[%clk 0:02:44]}  Rxd8 {[%clk 0:02:27]} 11. h3 {[%clk 0:02:43]}  Re8 {[%clk 0:02:25]} 12. Bd3 {[%clk 0:02:38]}  Bf5 {[%clk 0:02:22]} 13. Nd2 {[%clk 0:02:34]}  Bd4 {[%clk 0:02:19]} 14. Bb2 {[%clk 0:02:33]}  Nxe4 {[%clk 0:02:16]} 15. Bxe4 {[%clk 0:02:32]}  Bxe4 {[%clk 0:02:16]} 16. Ncxe4 {[%clk 0:02:09]}  Bxb2 {[%clk 0:02:14]} 17. Ra2 {[%clk 0:02:09]}  Bc3 {[%clk 0:01:47]} 18. O-O {[%clk 0:02:07]}  Bxd2 {[%clk 0:01:47]} 19. Nxd2 {[%clk 0:02:07]}  Nc6 {[%clk 0:01:48]} 20. Nf3 {[%clk 0:02:03]}  Rad8 {[%clk 0:01:48]} 21. c4 {[%clk 0:02:03]}  Nd4 {[%clk 0:01:46]} 22. Nxd4 {[%clk 0:01:55]}  Rxd4 {[%clk 0:01:47]} 23. c5 {[%clk 0:01:55]}  f5 {[%clk 0:01:41]} 24. Rb1 {[%clk 0:01:54]}  f4 {[%clk 0:01:37]} 25. Rc2 {[%clk 0:01:52]}  Kf7 {[%clk 0:01:34]} 26. a4 {[%clk 0:01:52]}  g5 {[%clk 0:01:32]} 27. a5 {[%clk 0:01:51]}  Red8 {[%clk 0:01:24]} 28. Rbb2 {[%clk 0:01:42]}  Rd1+ {[%clk 0:01:08]} 29. Kh2 {[%clk 0:01:42]}  R8d3 {[%clk 0:01:01]} 30. c6 {[%clk 0:01:36]}  b6 {[%clk 0:01:00]} 31. axb6 {[%clk 0:01:36]}  axb6 {[%clk 0:01:00]} 32. Ra2 {[%clk 0:01:37]}  Rb3 {[%clk 0:00:54]} 33. Rd2 {[%clk 0:01:22]}  Re1 {[%clk 0:00:21]} 34. Rd7+ {[%clk 0:01:19]}  Kf6 {[%clk 0:00:19]} 35. g3 {[%clk 0:01:17]}  f3 {[%clk 0:00:15]} 36. g4 {[%clk 0:01:07]}  Re7 {[%clk 0:00:11]} 37. Rd4 {[%clk 0:01:03]}  Re2 {[%clk 0:00:09]} 38. Rxe2 {[%clk 0:00:34]}  fxe2 {[%clk 0:00:10]} 39. Re4 {[%clk 0:00:35]}  Rxb4 {[%clk 0:00:10]} 40. Rxe2 {[%clk 0:00:35]}  Rc4 {[%clk 0:00:10]} 41. Rd2 {[%clk 0:00:36]}  Rxc6 {[%clk 0:00:10]} 42. Rd7 {[%clk 0:00:36]}  h6 {[%clk 0:00:10]} 43. Rh7 {[%clk 0:00:36]}  Kg6 {[%clk 0:00:10]} 44. Rh8 {[%clk 0:00:36]}  Rc3 {[%clk 0:00:10]} 45. Rg8+ {[%clk 0:00:36]}  Kf7 {[%clk 0:00:10]} 46. Rh8 {[%clk 0:00:35]}  Kg7 {[%clk 0:00:10]} 47. Rb8 {[%clk 0:00:36]}  Kf6 {[%clk 0:00:09]} 48. Rh8 {[%clk 0:00:35]}  Kg7 {[%clk 0:00:09]} 49. Rb8 {[%clk 0:00:35]}  Rc4 {[%clk 0:00:08]} 50. Kg3 {[%clk 0:00:35]}  Rc3+ {[%clk 0:00:08]} 51. Kg2 {[%clk 0:00:35]}  Kg6 {[%clk 0:00:08]} 52. Rg8+ {[%clk 0:00:35]}  Kh7 {[%clk 0:00:08]} 53. Rb8 {[%clk 0:00:35]}  Kg7 {[%clk 0:00:09]} 54. Kh2 {[%clk 0:00:35]} 1/2-1/2

[Event "December 5 Early 2023"]
[Site "https://www.chess.com"]
[Date "2023.12.05"]
[Round "5"]
[White "Boor, Carl"]
[Black "Matveeva, Olga"]
[Result "1-0"]
[Board "122"]
[TimeControl "180+1"]
[WhiteFideId "2017008"]
[BlackFideId "24107018"]
[WhiteElo "2584"]
[BlackElo "2389"]
[WhiteTeam "USA"]
[BlackTeam "RUS"]
[WhiteClock "0:00:27"]
[BlackClock "0:00:13"]

1. d4 {[%clk 0:03:00]}  d5 {[%clk 0:02:59]} 2. c4 {[%clk 0:03:00]}  e6 {[%clk 0:02:59]} 3. Nc3 {[%clk 0:02:59]}  Nf6 {[%clk 0:03:00]} 4. cxd5 {[%clk 0:02:59]}  exd5 {[%clk 0:03:01]} 5. Bg5 {[%clk 0:02:59]}  Be7 {[%clk 0:03:01]} 6. e3 {[%clk 0:02:59]}  Nbd7 {[%clk 0:03:01]} 7. Bd3 {[%clk 0:02:58]}  c6 {[%clk 0:03:01]} 8. Qc2 {[%clk 0:02:57]}  Nh5 {[%clk 0:03:01]} 9. Bxe7 {[%clk 0:02:54]}  Qxe7 {[%clk 0:03:02]} 10. Nge2 {[%clk 0:02:52]}  g6 {[%clk 0:03:02]} 11. O-O-O {[%clk 0:02:50]}  Nb6 {[%clk 0:03:01]} 12. Kb1 {[%clk 0:02:49]}  Ng7 {[%clk 0:02:59]} 13. Ng3 {[%clk 0:02:41]}  h5 {[%clk 0:02:51]} 14. h4 {[%clk 0:02:35]}  Be6 {[%clk 0:02:49]} 15. Nce2 {[%clk 0:02:29]}  O-O-O {[%clk 0:02:47]} 16. Nf4 {[%clk 0:02:26]}  Kb8 {[%clk 0:02:46]} 17. a3 {[%clk 0:02:17]}  Rhe8 {[%clk 0:02:39]} 18. Rc1 {[%clk 0:01:58]}  Bc8 {[%clk 0:02:22]} 19. Be2 {[%clk 0:01:33]}  Bf5 {[%clk 0:02:15]} 20. Nxf5 {[%clk 0:01:29]}  Nxf5 {[%clk 0:02:16]} 21. g3 {[%clk 0:01:27]}  Nd6 {[%clk 0:02:10]} 22. Bd3 {[%clk 0:01:23]}  Nbc4 {[%clk 0:02:06]} 23. Ka2 {[%clk 0:01:20]}  Rc8 {[%clk 0:01:50]} 24. Rhe1 {[%clk 0:01:18]}  Nb6 {[%clk 0:01:47]} 25. b3 {[%clk 0:01:10]}  Ne4 {[%clk 0:00:39]} 26. Bxe4 {[%clk 0:00:57]}  Qxe4 {[%clk 0:00:40]} 27. Qxe4 {[%clk 0:00:56]}  Rxe4 {[%clk 0:00:41]} 28. Rc3 {[%clk 0:00:48]}  Rce8 {[%clk 0:00:41]} 29. Rec1 {[%clk 0:00:48]}  Nd7 {[%clk 0:00:40]} 30. Nd3 {[%clk 0:00:42]}  Kc7 {[%clk 0:00:33]} 31. b4 {[%clk 0:00:40]}  Nb6 {[%clk 0:00:25]} 32. b5 {[%clk 0:00:36]}  Nc4 {[%clk 0:00:24]} 33. bxc6 {[%clk 0:00:36]}  bxc6 {[%clk 0:00:24]} 34. Nb2 {[%clk 0:00:34]}  Nxb2 {[%clk 0:00:19]} 35. Rxc6+ {[%clk 0:00:34]}  Kd7 {[%clk 0:00:19]} 36. Kxb2 {[%clk 0:00:34]}  Rb8+ {[%clk 0:00:20]} 37. Ka2 {[%clk 0:00:34]}  Re6 {[%clk 0:00:19]} 38. Rc7+ {[%clk 0:00:33]}  Kd8 {[%clk 0:00:19]} 39. Rxa7 {[%clk 0:00:33]}  Reb6 {[%clk 0:00:20]} 40. Rc2 {[%clk 0:00:33]}  R8b7 {[%clk 0:00:19]} 41. Rxb7 {[%clk 0:00:32]}  Rxb7 {[%clk 0:00:19]} 42. a4 {[%clk 0:00:32]}  Kd7 {[%clk 0:00:20]} 43. Rb2 {[%clk 0:00:32]}  Rc7 {[%clk 0:00:19]} 44. Kb3 {[%clk 0:00:32]}  Rc1 {[%clk 0:00:19]} 45. Kb4 {[%clk 0:00:32]}  Kc7 {[%clk 0:00:19]} 46. Kb5 {[%clk 0:00:31]}  Ra1 {[%clk 0:00:18]} 47. Kc5 {[%clk 0:00:30]}  Rxa4 {[%clk 0:00:18]} 48. Kxd5 {[%clk 0:00:30]}  Ra5+ {[%clk 0:00:18]} 49. Ke4 {[%clk 0:00:30]}  Kd6 {[%clk 0:00:18]} 50. Rb7 {[%clk 0:00:30]}  Ke6 {[%clk 0:00:18]} 51. Kf3 {[%clk 0:00:30]}  Kf6 {[%clk 0:00:18]} 52. Kg2 {[%clk 0:00:30]}  Ra2 {[%clk 0:00:18]} 53. Rc7 {[%clk 0:00:30]}  Rb2 {[%clk 0:00:18]} 54. Rc1 {[%clk 0:00:29]}  Ra2 {[%clk 0:00:18]} 55. Rd1 {[%clk 0:00:30]}  Rb2 {[%clk 0:00:18]} 56. d5 {[%clk 0:00:30]}  Ke7 {[%clk 0:00:18]} 57. d6+ {[%clk 0:00:30]}  Kd7 {[%clk 0:00:18]} 58. Kf3 {[%clk 0:00:29]}  Rb4 {[%clk 0:00:18]} 59. e4 {[%clk 0:00:29]}  f6 {[%clk 0:00:17]} 60. Kf4 {[%clk 0:00:28]}  Ra4 {[%clk 0:00:17]} 61. f3 {[%clk 0:00:28]}  Rb4 {[%clk 0:00:17]} 62. g4 {[%clk 0:00:29]}  hxg4 {[%clk 0:00:16]} 63. fxg4 {[%clk 0:00:29]}  Ra4 {[%clk 0:00:16]} 64. Rd5 {[%clk 0:00:28]}  Rb4 {[%clk 0:00:16]} 65. h5 {[%clk 0:00:29]}  gxh5 {[%clk 0:00:16]} 66. gxh5 {[%clk 0:00:29]}  Rb1 {[%clk 0:00:15]} 67. Kf5 {[%clk 0:00:28]}  Rf1+ {[%clk 0:00:15]} 68. Kg6 {[%clk 0:00:28]}  Rh1 {[%clk 0:00:15]} 69. h6 {[%clk 0:00:27]}  f5 {[%clk 0:00:14]} 70. Rxf5 {[%clk 0:00:27]}  Kxd6 {[%clk 0:00:14]} 71. h7 {[%clk 0:00:27]}  Rg1+ {[%clk 0:00:14]} 72. Rg5 {[%clk 0:00:27]}  Rh1 {[%clk 0:00:13]} 73. Rh5 {[%clk 0:00:27]} 1-0

[Event "December 5 Early 2023"]
[Site "https://www.chess.com"]
[Date "2023.12.05"]
[Round "5"]
[White "Kononenko, Dmitry"]
[Black "Garrido, Denis"]
[Result "0-1"]
[Board "124"]
[TimeControl "180+1"]
[WhiteFideId "14113538"]
[BlackFideId "601217"]
[WhiteElo "2582"]
[BlackElo "2385"]
[WhiteTeam "UKR"]
[BlackTeam "FRA"]
[WhiteClock "0:00:11"]
[BlackClock "0:00:08"]

1. e4 {[%clk 0:03:00]}  e5 {[%clk 0:02:58]} 2. Nf3 {[%clk 0:02:59]}  Nf6 {[%clk 0:02:58]} 3. Nxe5 {[%clk 0:02:59]}  d5 {[%clk 0:02:58]} 4. d4 {[%clk 0:02:57]}  Nxe4 {[%clk 0:02:55]} 5. Bd3 {[%clk 0:02:57]}  Bd6 {[%clk 0:02:53]} 6. O-O {[%clk 0:02:56]}  O-O {[%clk 0:02:51]} 7. Nc3 {[%clk 0:02:53]}  Nxc3 {[%clk 0:02:50]} 8. bxc3 {[%clk 0:02:54]}  Nd7 {[%clk 0:02:47]} 9. f4 {[%clk 0:02:42]}  Nf6 {[%clk 0:02:37]} 10. Qf3 {[%clk 0:02:39]}  Re8 {[%clk 0:02:29]} 11. Bd2 {[%clk 0:02:32]}  c5 {[%clk 0:02:28]} 12. Bb5 {[%clk 0:02:26]}  Re7 {[%clk 0:02:22]} 13. dxc5 {[%clk 0:02:22]}  Bxc5+ {[%clk 0:02:21]} 14. Kh1 {[%clk 0:02:22]}  Bf5 {[%clk 0:02:17]} 15. Bd3 {[%clk 0:02:18]}  Ne4 {[%clk 0:02:09]} 16. Bxe4 {[%clk 0:02:14]}  Bxe4 {[%clk 0:02:10]} 17. Qg3 {[%clk 0:02:09]}  Bd6 {[%clk 0:01:39]} 18. Rae1 {[%clk 0:02:02]}  Qc7 {[%clk 0:01:31]} 19. Ng4 {[%clk 0:01:55]}  Kh8 {[%clk 0:01:29]} 20. Ne3 {[%clk 0:01:54]}  f5 {[%clk 0:01:23]} 21. c4 {[%clk 0:01:46]}  dxc4 {[%clk 0:01:21]} 22. Bc3 {[%clk 0:01:45]}  Rg8 {[%clk 0:01:11]} 23. Rd1 {[%clk 0:01:40]}  Re6 {[%clk 0:01:08]} 24. Nd5 {[%clk 0:01:22]}  Qf7 {[%clk 0:01:01]} 25. Ne3 {[%clk 0:01:16]}  Qh5 {[%clk 0:00:53]} 26. Rd4 {[%clk 0:00:57]}  Rg6 {[%clk 0:00:53]} 27. Qf2 {[%clk 0:00:50]}  Bc5 {[%clk 0:00:41]} 28. Rxe4 {[%clk 0:00:49]}  fxe4 {[%clk 0:00:40]} 29. f5 {[%clk 0:00:50]}  Rh6 {[%clk 0:00:37]} 30. h3 {[%clk 0:00:45]}  Be7 {[%clk 0:00:32]} 31. Nd5 {[%clk 0:00:42]}  Bf6 {[%clk 0:00:30]} 32. Nxf6 {[%clk 0:00:32]}  gxf6 {[%clk 0:00:31]} 33. Re1 {[%clk 0:00:31]}  Re8 {[%clk 0:00:28]} 34. Qg3 {[%clk 0:00:24]}  Qxf5 {[%clk 0:00:25]} 35. Qd6 {[%clk 0:00:23]}  Qe6 {[%clk 0:00:24]} 36. Qf4 {[%clk 0:00:19]}  Kg8 {[%clk 0:00:17]} 37. Bd4 {[%clk 0:00:18]}  Rg6 {[%clk 0:00:16]} 38. c3 {[%clk 0:00:18]}  f5 {[%clk 0:00:14]} 39. Rf1 {[%clk 0:00:16]}  Rf8 {[%clk 0:00:13]} 40. Qh4 {[%clk 0:00:15]}  Rh6 {[%clk 0:00:12]} 41. Qg5+ {[%clk 0:00:15]}  Rg6 {[%clk 0:00:13]} 42. Qf4 {[%clk 0:00:15]}  Rf7 {[%clk 0:00:13]} 43. Rd1 {[%clk 0:00:15]}  Qc6 {[%clk 0:00:12]} 44. Be5 {[%clk 0:00:14]}  e3 {[%clk 0:00:12]} 45. Rd8+ {[%clk 0:00:13]}  Rf8 {[%clk 0:00:13]} 46. Rxf8+ {[%clk 0:00:13]}  Kxf8 {[%clk 0:00:14]} 47. Qxf5+ {[%clk 0:00:14]}  Kg8 {[%clk 0:00:12]} 48. Qf1 {[%clk 0:00:12]}  Qe4 {[%clk 0:00:09]} 49. Bd4 {[%clk 0:00:11]}  e2 {[%clk 0:00:08]} 50. Qf2 {[%clk 0:00:09]}  e1=Q+ {[%clk 0:00:08]} 51. Kh2 {[%clk 0:00:10]}  Qxf2 {[%clk 0:00:07]} 52. Bxf2 {[%clk 0:00:11]}  Qxg2# {[%clk 0:00:08]} 0-1

[Event "December 5 Early 2023"]
[Site "https://www.chess.com"]
[Date "2023.12.05"]
[Round "5"]
[White "Morgunov, Marc"]
[Black "Buchenau, Frank"]
[Result "0-1"]
[Board "126"]
[TimeControl "180+1"]
[WhiteFideId "1640305"]
[BlackFideId "4604350"]
[WhiteElo "2579"]
[BlackElo "2377"]
[WhiteTeam "AUT"]
[BlackTeam "GER"]
[WhiteClock "0:01:12"]
[BlackClock "0:01:37"]

1. e4 {[%clk 0:03:00]}  e6 {[%clk 0:03:00]} 2. d4 {[%clk 0:02:59]}  d5 {[%clk 0:03:00]} 3. Nc3 {[%clk 0:03:00]}  Nf6 {[%clk 0:03:00]} 4. exd5 {[%clk 0:02:59]}  exd5 {[%clk 0:03:00]} 5. Bg5 {[%clk 0:02:59]}  Be7 {[%clk 0:03:00]} 6. Bd3 {[%clk 0:02:55]}  Bg4 {[%clk 0:02:55]} 7. f3 {[%clk 0:02:54]}  Bh5 {[%clk 0:02:55]} 8. Nge2 {[%clk 0:02:54]}  Bg6 {[%clk 0:02:54]} 9. h4 {[%clk 0:02:50]}  c6 {[%clk 0:02:51]} 10. Qd2 {[%clk 0:02:48]}  Nbd7 {[%clk 0:02:49]} 11. g4 {[%clk 0:02:44]}  Bxd3 {[%clk 0:02:46]} 12. Qxd3 {[%clk 0:02:45]}  h5 {[%clk 0:02:44]} 13. Bxf6 {[%clk 0:02:44]}  Bxf6 {[%clk 0:02:37]} 14. g5 {[%clk 0:02:43]}  Be7 {[%clk 0:02:36]} 15. O-O-O {[%clk 0:02:37]}  Nf8 {[%clk 0:02:34]} 16. f4 {[%clk 0:02:23]}  Qa5 {[%clk 0:02:05]} 17. f5 {[%clk 0:02:14]}  O-O-O {[%clk 0:02:05]} 18. Kb1 {[%clk 0:02:11]}  Bd6 {[%clk 0:02:00]} 19. Rhf1 {[%clk 0:01:59]}  Nd7 {[%clk 0:01:59]} 20. Nf4 {[%clk 0:01:53]}  Rde8 {[%clk 0:01:55]} 21. Qf3 {[%clk 0:01:50]}  Nb6 {[%clk 0:01:43]} 22. Nd3 {[%clk 0:01:19]}  Nc4 {[%clk 0:01:41]} 23. Rde1 {[%clk 0:01:12]}  Nd2+ {[%clk 0:01:37]} 0-1

[Event "December 5 Early 2023"]
[Site "https://www.chess.com"]
[Date "2023.12.05"]
[Round "5"]
[White "De Arruda, Leandro Formes"]
[Black "Vovk, Orest"]
[Result "0-1"]
[Board "129"]
[TimeControl "180+1"]
[WhiteFideId "22722009"]
[BlackFideId "14113490"]
[WhiteElo "2337"]
[BlackElo "2558"]
[WhiteTeam "BRA"]
[BlackTeam "UKR"]
[WhiteClock "0:00:13"]
[BlackClock "0:00:07"]

1. d4 {[%clk 0:03:00]}  h6 {[%clk 0:02:59]} 2. Nf3 {[%clk 0:03:00]}  g5 {[%clk 0:02:59]} 3. c4 {[%clk 0:02:56]}  Bg7 {[%clk 0:03:00]} 4. Nc3 {[%clk 0:02:57]}  c5 {[%clk 0:03:00]} 5. e3 {[%clk 0:02:56]}  Nc6 {[%clk 0:02:59]} 6. Be2 {[%clk 0:02:55]}  g4 {[%clk 0:02:58]} 7. Ne5 {[%clk 0:02:45]}  Nxe5 {[%clk 0:02:53]} 8. dxe5 {[%clk 0:02:45]}  Bxe5 {[%clk 0:02:49]} 9. Bxg4 {[%clk 0:02:45]}  Bxc3+ {[%clk 0:02:48]} 10. bxc3 {[%clk 0:02:45]}  d6 {[%clk 0:02:45]} 11. Qa4+ {[%clk 0:02:41]}  Bd7 {[%clk 0:02:40]} 12. Qxd7+ {[%clk 0:02:40]}  Qxd7 {[%clk 0:02:41]} 13. Bxd7+ {[%clk 0:02:40]}  Kxd7 {[%clk 0:02:41]} 14. Rb1 {[%clk 0:02:37]}  Kc6 {[%clk 0:02:37]} 15. e4 {[%clk 0:02:36]}  Nf6 {[%clk 0:02:36]} 16. f3 {[%clk 0:02:36]}  Nd7 {[%clk 0:02:29]} 17. Bf4 {[%clk 0:01:59]}  e5 {[%clk 0:02:23]} 18. Be3 {[%clk 0:01:55]}  Nb6 {[%clk 0:02:23]} 19. Ke2 {[%clk 0:01:50]}  Nxc4 {[%clk 0:02:23]} 20. Bf2 {[%clk 0:01:50]}  h5 {[%clk 0:02:20]} 21. Rhd1 {[%clk 0:01:49]}  b5 {[%clk 0:02:20]} 22. Rd5 {[%clk 0:01:47]}  Rhg8 {[%clk 0:02:14]} 23. g3 {[%clk 0:01:46]}  a5 {[%clk 0:02:09]} 24. Rbd1 {[%clk 0:01:40]}  a4 {[%clk 0:02:07]} 25. Be3 {[%clk 0:01:34]}  Raf8 {[%clk 0:02:00]} 26. f4 {[%clk 0:01:29]}  f6 {[%clk 0:01:56]} 27. f5 {[%clk 0:01:23]}  h4 {[%clk 0:01:40]} 28. Kf3 {[%clk 0:01:21]}  hxg3 {[%clk 0:01:31]} 29. hxg3 {[%clk 0:01:22]}  Rf7 {[%clk 0:01:23]} 30. Bf2 {[%clk 0:01:20]}  Rh7 {[%clk 0:01:19]} 31. Kg2 {[%clk 0:01:17]}  Rg5 {[%clk 0:01:02]} 32. Kf3 {[%clk 0:01:00]}  Rgh5 {[%clk 0:01:00]} 33. Kg2 {[%clk 0:00:54]}  Rh2+ {[%clk 0:00:59]} 34. Kf3 {[%clk 0:00:54]}  Rh1 {[%clk 0:00:59]} 35. Bg1 {[%clk 0:00:48]}  a3 {[%clk 0:00:44]} 36. Kg2 {[%clk 0:00:42]}  R1h3 {[%clk 0:00:41]} 37. Bf2 {[%clk 0:00:38]}  Rh2+ {[%clk 0:00:41]} 38. Kf3 {[%clk 0:00:38]}  R7h3 {[%clk 0:00:37]} 39. R5d3 {[%clk 0:00:29]}  Rxf2+ {[%clk 0:00:33]} 40. Kxf2 {[%clk 0:00:28]}  Rh2+ {[%clk 0:00:33]} 41. Kf3 {[%clk 0:00:26]}  Rxa2 {[%clk 0:00:34]} 42. g4 {[%clk 0:00:25]}  Rh2 {[%clk 0:00:17]} 43. g5 {[%clk 0:00:25]}  fxg5 {[%clk 0:00:14]} 44. Kg4 {[%clk 0:00:20]}  Nb2 {[%clk 0:00:13]} 45. f6 {[%clk 0:00:19]}  Nxd3 {[%clk 0:00:10]} 46. Rxd3 {[%clk 0:00:17]}  Rf2 {[%clk 0:00:07]} 47. Rf3 {[%clk 0:00:16]}  Rxf3 {[%clk 0:00:06]} 48. Kxf3 {[%clk 0:00:17]}  Kd7 {[%clk 0:00:06]} 49. Kg4 {[%clk 0:00:14]}  Ke6 {[%clk 0:00:07]} 50. Kxg5 {[%clk 0:00:14]}  Kf7 {[%clk 0:00:07]} 51. Kg4 {[%clk 0:00:13]} 0-1

[Event "December 5 Early 2023"]
[Site "https://www.chess.com"]
[Date "2023.12.05"]
[Round "5"]
[White "Durucay, Uygar"]
[Black "Zivic, Dragan"]
[Result "0-1"]
[Board "130"]
[TimeControl "180+1"]
[WhiteFideId "44591560"]
[BlackFideId "904740"]
[WhiteElo "2553"]
[BlackElo "2334"]
[WhiteTeam "TUR"]
[BlackTeam "SRB"]
[WhiteClock "0:00:03"]
[BlackClock "0:00:23"]

1. d4 {[%clk 0:03:00]}  Nf6 {[%clk 0:02:58]} 2. Nf3 {[%clk 0:03:00]}  e6 {[%clk 0:02:58]} 3. Bg5 {[%clk 0:03:00]}  c5 {[%clk 0:02:55]} 4. e3 {[%clk 0:02:57]}  cxd4 {[%clk 0:02:52]} 5. exd4 {[%clk 0:02:57]}  Be7 {[%clk 0:02:50]} 6. Bd3 {[%clk 0:02:56]}  d6 {[%clk 0:02:48]} 7. c3 {[%clk 0:02:55]}  h6 {[%clk 0:02:46]} 8. Bh4 {[%clk 0:02:53]}  b6 {[%clk 0:02:41]} 9. Nbd2 {[%clk 0:02:51]}  Bb7 {[%clk 0:02:39]} 10. O-O {[%clk 0:02:51]}  O-O {[%clk 0:02:37]} 11. Re1 {[%clk 0:02:51]}  Nbd7 {[%clk 0:02:34]} 12. a4 {[%clk 0:02:49]}  a6 {[%clk 0:02:32]} 13. Qe2 {[%clk 0:02:48]}  Re8 {[%clk 0:02:25]} 14. Bg3 {[%clk 0:02:40]}  Nh5 {[%clk 0:02:23]} 15. Nc4 {[%clk 0:02:28]}  Nxg3 {[%clk 0:02:21]} 16. hxg3 {[%clk 0:02:29]}  Qc7 {[%clk 0:02:10]} 17. g4 {[%clk 0:02:18]}  g6 {[%clk 0:02:09]} 18. Ncd2 {[%clk 0:02:14]}  Nf6 {[%clk 0:02:04]} 19. g5 {[%clk 0:02:10]}  hxg5 {[%clk 0:02:01]} 20. Nxg5 {[%clk 0:02:11]}  Bf8 {[%clk 0:01:54]} 21. Nge4 {[%clk 0:01:55]}  Nxe4 {[%clk 0:01:54]} 22. Nxe4 {[%clk 0:01:55]}  Bg7 {[%clk 0:01:49]} 23. Ng5 {[%clk 0:01:53]}  Bf6 {[%clk 0:01:46]} 24. Qg4 {[%clk 0:01:49]}  Bxg5 {[%clk 0:01:42]} 25. Qxg5 {[%clk 0:01:49]}  Qe7 {[%clk 0:01:41]} 26. Qg3 {[%clk 0:01:49]}  Kg7 {[%clk 0:01:38]} 27. f3 {[%clk 0:01:41]}  Rh8 {[%clk 0:01:36]} 28. Kf2 {[%clk 0:01:41]}  Qh4 {[%clk 0:01:34]} 29. Rh1 {[%clk 0:01:38]}  Qxg3+ {[%clk 0:01:27]} 30. Kxg3 {[%clk 0:01:39]}  a5 {[%clk 0:01:25]} 31. Rhb1 {[%clk 0:01:32]}  f5 {[%clk 0:01:20]} 32. b4 {[%clk 0:01:30]}  Ba6 {[%clk 0:01:17]} 33. Bc2 {[%clk 0:01:24]}  Rac8 {[%clk 0:01:12]} 34. bxa5 {[%clk 0:01:22]}  bxa5 {[%clk 0:01:10]} 35. Rb6 {[%clk 0:01:19]}  Bc4 {[%clk 0:01:07]} 36. Rxd6 {[%clk 0:01:18]}  Bd5 {[%clk 0:01:07]} 37. Ra3 {[%clk 0:01:06]}  Rc7 {[%clk 0:01:04]} 38. Bd3 {[%clk 0:01:00]}  Rhc8 {[%clk 0:01:01]} 39. Ba6 {[%clk 0:00:56]}  Rxc3 {[%clk 0:00:58]} 40. Rd7+ {[%clk 0:00:49]}  Kf6 {[%clk 0:00:56]} 41. Ra1 {[%clk 0:00:46]}  Rb8 {[%clk 0:00:53]} 42. Bb5 {[%clk 0:00:38]}  Rbc8 {[%clk 0:00:52]} 43. Ra7 {[%clk 0:00:29]}  Rc2 {[%clk 0:00:52]} 44. Rh1 {[%clk 0:00:26]}  R8c7 {[%clk 0:00:38]} 45. Rxa5 {[%clk 0:00:25]}  Rd2 {[%clk 0:00:37]} 46. Ra6 {[%clk 0:00:21]}  Rxd4 {[%clk 0:00:34]} 47. Rd6 {[%clk 0:00:19]}  Rd2 {[%clk 0:00:31]} 48. Rd8 {[%clk 0:00:17]}  Rcc2 {[%clk 0:00:30]} 49. Rg1 {[%clk 0:00:17]}  g5 {[%clk 0:00:30]} 50. a5 {[%clk 0:00:15]}  g4 {[%clk 0:00:28]} 51. a6 {[%clk 0:00:12]}  gxf3 {[%clk 0:00:27]} 52. gxf3 {[%clk 0:00:12]}  Rc3 {[%clk 0:00:27]} 53. Rf1 {[%clk 0:00:12]}  Ke5 {[%clk 0:00:27]} 54. a7 {[%clk 0:00:11]}  Ra2 {[%clk 0:00:26]} 55. Re1+ {[%clk 0:00:07]}  Kf6 {[%clk 0:00:26]} 56. Re2 {[%clk 0:00:03]}  Rxa7 {[%clk 0:00:24]} 57. Rd6 {[%clk 0:00:02]}  Rxf3+ {[%clk 0:00:24]} 58. Kh4 {[%clk 0:00:03]}  Rh7# {[%clk 0:00:23]} 0-1